Workbook

Sheet Calculate
A1: WORKING FROM HOME DEDUCTIONS 2020-21
A2: Please input only in cells shaded in yellow. See comments for details and sheet "Example" for reference.
A3: Start date | F3: 2020-07-01 | G3: 2020-08-01 | H3: 2020-09-01 | I3: 2020-10-01 | J3: 2020-11-01 | K3: 2020-12-01 | L3: 2021-01-01 | M3: 2021-02-01 | N3: 2021-03-01 | O3: 2021-04-01 | P3: 2021-05-01 | Q3: 2021-06-01
A4: End date | F4: 2020-07-31 | G4: 2020-08-31 | H4: 2020-09-30 | I4: 2020-10-31 | J4: 2020-11-30 | K4: 2020-12-31 | L4: 2021-01-31 | M4: 2021-02-28 | N4: 2021-03-31 | O4: 2021-04-30 | P4: 2021-05-31 | Q4: 2021-06-30
A6: 1 Input expense numbers (without decimals) | F6: Jul | G6: Aug | H6: Sep | I6: Oct | J6: Nov | K6: Dec | L6: Jan | M6: Feb | N6: Mar | O6: Apr | P6: Mar | Q6: Jun | R6: Total
A7: Electricity | R7: =SUM(F7:Q7) -> 0
A8: Gas | R8: 0
A9: Cleaning | R9: 0
A10: Repairs to above $300 items | R10: 0
A11: Landline | R11: 0
A12: Mobile | R12: 0
A13: Internet | R13: 0
A14: Consumables | R14: 0
A15: Stationery | R15: 0
A16: Other expenses | R16: 0
A17: Purchases up to $300 each item | R17: 0
E18: Total | F18: =SUM(F7:F17) -> 0 | G18: 0 | H18: 0 | I18: 0 | J18: 0 | K18: 0 | L18: 0 | M18: 0 | N18: 0 | O18: 0 | P18: 0 | Q18: 0
A20: 2 Input purchase numbers for above $300 items | F20: Jul | G20: Aug | H20: Sep | I20: Oct | J20: Nov | K20: Dec | L20: Jan | M20: Feb | N20: Mar | O20: Apr | P20: Mar | Q20: Jun | R20: Total
B21: Purchase date | C21: Purchase amount | D21: Useful life | E21: End date
A22: Asset name | D22: 4 | E22: =B22+D22*365-1 -> 1903-12-29 | F22: =ROUND(((IF($E22>F$3,IF($E22<F$4,_xlfn.DAYS($E22,F$3)+1,IF($B22<F$3,_xlfn.DAYS(F$4,F$3)+1,IF($B22<F$4,_xlfn.DAYS(F$4,$B22)+1,0))))*$C22*100/$D22)/100)/365,0) -> 0 | G22: 0 | H22: 0 | I22: 0 | J22: 0 | K22: 0 | L22: 0 | M22: 0 | N22: 0 | O22: 0 | P22: 0 | Q22: 0 | R22: =SUM(F22:Q22) -> 0
A23: Asset name | D23: 4 | E23: =B23+D23*365-1 -> 1903-12-29 | F23: 0 | G23: 0 | H23: 0 | I23: 0 | J23: 0 | K23: 0 | L23: 0 | M23: 0 | N23: 0 | O23: 0 | P23: 0 | Q23: 0 | R23: =SUM(F23:Q23) -> 0
A24: Asset name | D24: 4 | E24: =B24+D24*365-1 -> 1903-12-29 | F24: 0 | G24: 0 | H24: 0 | I24: 0 | J24: 0 | K24: 0 | L24: 0 | M24: 0 | N24: 0 | O24: 0 | P24: 0 | Q24: 0 | R24: 0
A25: Asset name | D25: 4 | E25: =B25+D25*365-1 -> 1903-12-29 | F25: 0 | G25: 0 | H25: 0 | I25: 0 | J25: 0 | K25: 0 | L25: 0 | M25: 0 | N25: 0 | O25: 0 | P25: 0 | Q25: 0 | R25: 0
A26: Asset name | D26: 4 | E26: =B26+D26*365-1 -> 1903-12-29 | F26: 0 | G26: 0 | H26: 0 | I26: 0 | J26: 0 | K26: 0 | L26: 0 | M26: 0 | N26: 0 | O26: 0 | P26: 0 | Q26: 0 | R26: 0
A27: Asset name | D27: 4 | E27: =B27+D27*365-1 -> 1903-12-29 | F27: 0 | G27: 0 | H27: 0 | I27: 0 | J27: 0 | K27: 0 | L27: 0 | M27: 0 | N27: 0 | O27: 0 | P27: 0 | Q27: 0 | R27: 0
E28: Total | F28: =SUM(F22:F27) -> 0 | G28: 0 | H28: 0 | I28: 0 | J28: 0 | K28: 0 | L28: 0 | M28: 0 | N28: 0 | O28: 0 | P28: 0 | Q28: 0
A30: 3 Work% (only numbers-no sign)
A31: 4 Hours worked from home
A33: 5 Calculation (Automatic) | F33: Jul | G33: Aug | H33: Sep | I33: Oct | J33: Nov | K33: Dec | L33: Jan | M33: Feb | N33: Mar | O33: Apr | P33: Mar | Q33: Jun | R33: Total
A34: Fixed Rate Method | E34: 0.52 | F34: =ROUND(F31*$E$34,0) -> 0 | G34: 0 | H34: 0 | I34: 0 | J34: 0 | K34: 0 | L34: 0 | M34: 0 | N34: 0 | O34: 0 | P34: 0 | Q34: 0
A35: Other actuals to add with fixed rate | F35: =ROUND((SUM(F11,F12,F13,F14,F15,F17,F16)+F28)*F30/100,0) -> 0 | G35: 0 | H35: 0 | I35: 0 | J35: 0 | K35: 0 | L35: 0 | M35: 0 | N35: 0 | O35: 0 | P35: 0 | Q35: 0
A36: Option 1 : Fixed rate method (if you have dedicated work area) | F36: =SUM(F34:F35) -> 0 | G36: 0 | H36: 0 | I36: 0 | J36: 0 | K36: 0 | L36: 0 | M36: 0 | N36: 0 | O36: 0 | P36: 0 | Q36: 0 | R36: =ROUND(SUM(F36:Q36),0) -> 0
A38: Option 2 : All actual expenses | F38: =ROUND((SUM(F7:F17)+SUM(F22:F27))*F30/100,0) -> 0 | G38: 0 | H38: 0 | I38: 0 | J38: 0 | K38: 0 | L38: 0 | M38: 0 | N38: 0 | O38: 0 | P38: 0 | Q38: 0 | R38: =ROUND(SUM(F38:Q38),0) -> 0 | S38: Highest
A40: Option 3 : Shortcut method (available Mar-Jun 2020) | E40: 0.8 | F40: =F31*$E$40 -> 0 | G40: 0 | H40: 0 | I40: 0 | J40: 0 | K40: 0 | L40: 0 | M40: =M31*$E$40 -> 0 | N40: =N31*$E$40 -> 0 | O40: =O31*$E$40 -> 0 | P40: =P31*$E$40 -> 0 | Q40: =Q31*$E$40 -> 0 | R40: =ROUND(SUM(F40:Q40),0) -> 0
A42: 6 Select your option for each month (whichever is higher) | R42: =ROUND(SUM(F42:Q42),0) -> 0

Sheet Example
A1: WORKING FROM HOME DEDUCTIONS 2020-21
A2: Please input only in cells shaded in yellow. See comments for details and sheet "Example" for reference.
A3: Start date | F3: 2020-07-01 | G3: 2020-08-01 | H3: 2020-09-01 | I3: 2020-10-01 | J3: 2020-11-01 | K3: 2020-12-01 | L3: 2021-01-01 | M3: 2021-02-01 | N3: 2021-03-01 | O3: 2021-04-01 | P3: 2021-05-01 | Q3: 2021-06-01
A4: End date | F4: 2020-07-31 | G4: 2020-08-31 | H4: 2020-09-30 | I4: 2020-10-31 | J4: 2020-11-30 | K4: 2020-12-31 | L4: 2021-01-31 | M4: 2021-02-28 | N4: 2021-03-31 | O4: 2021-04-30 | P4: 2021-05-31 | Q4: 2021-06-30
A6: 1 Input expense numbers (without decimals) | F6: Jul | G6: Aug | H6: Sep | I6: Oct | J6: Nov | K6: Dec | L6: Jan | M6: Feb | N6: Mar | O6: Apr | P6: Mar | Q6: Jun | R6: Total
A7: Electricity | F7: 138 | G7: 138 | H7: 138 | I7: 138 | J7: 138 | K7: 138 | L7: 138 | M7: 138 | N7: 138 | O7: 138 | P7: 138 | Q7: 138 | R7: =SUM(F7:Q7) -> 1656
A8: Gas | F8: 31 | G8: 31 | H8: 31 | I8: 31 | J8: 31 | K8: 31 | L8: 31 | M8: 31 | N8: 31 | O8: 31 | P8: 31 | Q8: 31 | R8: 372
A9: Cleaning | R9: 0
A10: Repairs to above $300 items | R10: 0
A11: Landline | R11: 0
A12: Mobile | F12: 112 | G12: 112 | H12: 112 | I12: 112 | J12: 112 | K12: 112 | L12: 112 | M12: 112 | N12: 112 | O12: 112 | P12: 112 | Q12: 112 | R12: 1344
A13: Internet | F13: 99 | G13: 99 | H13: 99 | I13: 99 | J13: 99 | K13: 99 | L13: 99 | M13: 99 | N13: 99 | O13: 99 | P13: 99 | Q13: 99 | R13: 1188
A14: Consumables | R14: 0
A15: Stationery | R15: 0
A16: Other expenses | R16: 0
A17: Purchases up to $300 each item | F17: 250 | G17: 207 | H17: 194 | R17: 651
E18: Total | F18: =SUM(F7:F17) -> 630 | G18: 587 | H18: 574 | I18: 380 | J18: 380 | K18: 380 | L18: 380 | M18: 380 | N18: 380 | O18: 380 | P18: 380 | Q18: 380
A20: 2 Input purchase numbers for above $300 items | F20: Jul | G20: Aug | H20: Sep | I20: Oct | J20: Nov | K20: Dec | L20: Jan | M20: Feb | N20: Mar | O20: Apr | P20: Mar | Q20: Jun | R20: Total
B21: Purchase date | C21: Purchase amount | D21: Useful life | E21: End date
A22: Chair | B22: 2020-08-24 | C22: 624 | D22: 4 | E22: =B22+D22*365-1 -> 2024-08-22 | F22: =ROUND(((IF($E22>F$3,IF($E22<F$4,_xlfn.DAYS($E22,F$3)+1,IF($B22<F$3,_xlfn.DAYS(F$4,F$3)+1,IF($B22<F$4,_xlfn.DAYS(F$4,$B22)+1,0))))*$C22*100/$D22)/100)/365,0) -> 0 | G22: 3 | H22: 13 | I22: 13 | J22: 13 | K22: 13 | L22: 13 | M22: 12 | N22: 13 | O22: 13 | P22: 13 | Q22: 13 | R22: =SUM(F22:Q22) -> 132
A23: Monitor | B23: 2020-09-12 | C23: 580 | D23: 4 | E23: =B23+D23*365-1 -> 2024-09-10 | F23: 0 | G23: 0 | H23: 8 | I23: 12 | J23: 12 | K23: 12 | L23: 12 | M23: 11 | N23: 12 | O23: 12 | P23: 12 | Q23: 12 | R23: =SUM(F23:Q23) -> 115
A24: Audio | B24: 2021-02-02 | C24: 335 | D24: 4 | E24: =B24+D24*365-1 -> 2025-01-31 | F24: 0 | G24: 0 | H24: 0 | I24: 0 | J24: 0 | K24: 0 | L24: 0 | M24: 6 | N24: 7 | O24: 7 | P24: 7 | Q24: 7 | R24: 34
A25: Computer | B25: 2020-10-27 | C25: 1998 | D25: 4 | E25: =B25+D25*365-1 -> 2024-10-25 | F25: 0 | G25: 0 | H25: 0 | I25: 7 | J25: 41 | K25: 42 | L25: 42 | M25: 38 | N25: 42 | O25: 41 | P25: 42 | Q25: 41 | R25: 336
A26: Computer | B26: 2020-11-05 | C26: 663 | D26: 4 | E26: =B26+D26*365-1 -> 2024-11-03 | F26: 0 | G26: 0 | H26: 0 | I26: 0 | J26: 12 | K26: 14 | L26: 14 | M26: 13 | N26: 14 | O26: 14 | P26: 14 | Q26: 14 | R26: 109
A27: Computer | B27: 2020-11-13 | C27: 1314 | D27: 4 | E27: =B27+D27*365-1 -> 2024-11-11 | F27: 0 | G27: 0 | H27: 0 | I27: 0 | J27: 16 | K27: 28 | L27: 28 | M27: 25 | N27: 28 | O27: 27 | P27: 28 | Q27: 27 | R27: 207
E28: Total | F28: =SUM(F22:F27) -> 0 | G28: 3 | H28: 21 | I28: 32 | J28: 94 | K28: 109 | L28: 109 | M28: 105 | N28: 116 | O28: 114 | P28: 116 | Q28: 114
A30: 3 Work% (only numbers-no sign) | F30: 70 | G30: 70 | H30: 70 | I30: 70 | J30: 70 | K30: 70 | L30: 70 | M30: 70 | N30: 70 | O30: 70 | P30: 70 | Q30: 70
A31: 4 Hours worked from home | F31: 217 | G31: 217 | H31: 217 | I31: 217 | J31: 217 | K31: 217 | L31: 217 | M31: 217 | N31: 217 | O31: 217 | P31: 217 | Q31: 217
A33: 5 Calculation (Automatic) | F33: Jul | G33: Aug | H33: Sep | I33: Oct | J33: Nov | K33: Dec | L33: Jan | M33: Feb | N33: Mar | O33: Apr | P33: Mar | Q33: Jun | R33: Total
A34: Fixed Rate Method | E34: 0.52 | F34: =ROUND(F31*$E$34,0) -> 113 | G34: 113 | H34: 113 | I34: 113 | J34: 113 | K34: 113 | L34: 113 | M34: 113 | N34: 113 | O34: 113 | P34: 113 | Q34: 113
A35: Other actuals to add with fixed rate | F35: =ROUND((SUM(F11,F12,F13,F14,F15,F17,F16)+F28)*F30/100,0) -> 323 | G35: 295 | H35: 298 | I35: 170 | J35: 214 | K35: 224 | L35: 224 | M35: 221 | N35: 229 | O35: 228 | P35: 229 | Q35: 228
A36: Option 1 : Fixed rate method (if you have dedicated work area) | F36: =SUM(F34:F35) -> 436 | G36: 408 | H36: 411 | I36: 283 | J36: 327 | K36: 337 | L36: 337 | M36: 334 | N36: 342 | O36: 341 | P36: 342 | Q36: 341 | R36: =ROUND(SUM(F36:Q36),0) -> 4239
A38: Option 2 : All actual expenses | F38: =ROUND((SUM(F7:F17)+SUM(F22:F27))*F30/100,0) -> 441 | G38: 413 | H38: 417 | I38: 288 | J38: 332 | K38: 342 | L38: 342 | M38: 340 | N38: 347 | O38: 346 | P38: 347 | Q38: 346 | R38: =ROUND(SUM(F38:Q38),0) -> 4301 | S38: Highest
A40: Option 3 : Shortcut method (available Mar-Jun 2020) | E40: 0.8 | F40: =F31*$E$40 -> 173.6 | G40: 173.6 | H40: 173.6 | I40: 173.6 | J40: 173.6 | K40: 173.6 | L40: 173.6 | M40: =M31*$E$40 -> 173.6 | N40: =N31*$E$40 -> 173.6 | O40: =O31*$E$40 -> 173.6 | P40: =P31*$E$40 -> 173.6 | Q40: =Q31*$E$40 -> 173.6 | R40: =ROUND(SUM(F40:Q40),0) -> 2083
A42: 6 Select your option for each month (whichever is higher) | R42: =ROUND(SUM(F42:Q42),0) -> 0
